Cogmind - Beta 11 X7 @@@ ROGUE MODE // 2021.09.25 @ 06:19:03 Player: leiavoia Result: Self-destructed Performance ------------- Evolutions (7) 3500 Regions Visited (19) 3800 Robots Destroyed (208) 1040 Value Destroyed (8905) 8905 Prototype IDs (17) 340 Alien Tech Used (0) 0 Bonus (3348) 3348 TOTAL SCORE: 20933 Bonus ------- High Alert Combat Kills 2128 Follower Combat Kills 2042 Network Hubs Disabled 200 Met R17 at Cetus 500 Friendly Fire -1522 Cogmind --------- Core Integrity 252/1300 Matter 252/300 Energy 100/100 System Corruption 43% Temperature Cool (0) Movement Core (50) Location -3/Research Parts ------- > --- POWER (2) -------- (None) > --- PROPULSION (4) --- Heavy Treads > --- UTILITY (11) ----- (None) > --- WEAPON (4) ------- (None) > --- INVENTORY (5) ---- Light Antimatter Reactor Peak State ------------ > --- POWER ------------ Light Antimatter Reactor Particle Reactor > --- PROPULSION ------- Armored Medium Treads Biometal Medium Treads Centrium Heavy Treads > --- UTILITY ---------- Advanced Heat Sink Large Storage Unit Enhanced Optical Array Advanced Signal Interpreter Advanced Terrain Scan Processor Advanced Target Analyzer Advanced Armor Integrity Analyzer Advanced Particle Charger Improved Weapon Cycler Centrium Medium Armor Plating Centrium Medium Armor Plating > --- WEAPON ----------- KE Penetrator Improved KE Penetrator Improved KE Penetrator Power Sword > --- INVENTORY -------- Light Antimatter Reactor Medium Treads Heavy Treads Large Matter Pod Long-range Terrain Scanner Advanced Core Analyzer Improved Transmission Jammer Advanced Hacking Suite Experimental Hacking Suite Gamma Rifle HERF Cannon Heavy Mass Driver Micro-nuke Launcher [Rating: 148] Favorites ----------- Power Antimatter Reactor Engine Improved Ion Engine Power Core Micro Fission Core Reactor Antimatter Reactor Propulsion Armored Huge Wheel Treads Armored Medium Treads Leg Aluminum Leg Wheel Armored Huge Wheel Utility Large Storage Unit Device Advanced Heat Sink Storage Large Storage Unit Processor Improved Targeting Computer Hackware Advanced Hacking Suite Protection Centrium Medium Armor Plating Weapon Enhanced Autogun Energy Gun Beamcaster Energy Cannon Heavy Particle Cannon Ballistic Gun Enhanced Autogun Ballistic Cannon Bore Cannon Launcher Micro-nuke Launcher Special Weapon Mining Laser Slashing Weapon Power Sword Build | -11 -10 -9 -9 -8 -7 -7 -7 -6 -6 -6 -6 -5 -5 -5 -5 -5 -5 -4 -3 ------- Run | Scr Mat Mat Min Mat Fac Was Fac Fac Low Low Zio Pro Fac Ext Cet Arc Hub Fac Res Slots Evolved 14 | . . 2 . 2 2 . . 2 . . . . 2 . . . . 2 2 Power 1 | . . . . . 1 . . . . . . . . . . . . . . Propulsion 2 | . . . . . . . . 1 . . . . 1 . . . . . . Utility 9 | . . 2 . 1 1 . . . . . . . 1 . . . . 2 2 Weapon 2 | . . . . 1 . . . 1 . . . . . . . . . . . Parts Attached 245 | 6 2 24 3 33 34 6 . 4 1 . . 5 4 21 16 3 10 12 61 Power 27 | 1 . 3 . 2 6 2 . . . . . . . 2 1 . 1 2 7 Engine 13 | 1 . 3 . 2 6 . . . . . . . . . . . . 1 . Core 3 | . . . . . . . . . . . . . . 1 . . 1 1 . Reactor 11 | . . . . . . 2 . . . . . . . 1 1 . . . 7 Propulsion 47 | 2 . 9 1 12 6 . . 1 . . . . 1 1 1 . 3 . 10 Treads 27 | . . 5 . 7 2 . . 1 . . . . . . . . 3 . 9 Leg 2 | . . 2 . . . . . . . . . . . . . . . . . Wheel 18 | 2 . 2 1 5 4 . . . . . . . 1 1 1 . . . 1 Hover . | . . . . . . . . . . . . . . . . . . . . Flight . | . . . . . . . . . . . . . . . . . . . . Utility 89 | 1 2 3 1 7 12 1 . 2 1 . . 5 2 6 9 1 2 6 28 Device 44 | . 1 1 . 4 4 1 . 1 1 . . 4 . 3 2 1 1 4 16 Storage 7 | 1 1 1 . 1 2 . . . . . . . . . . . . . 1 Processor 17 | . . 1 . 2 2 . . 1 . . . . 2 1 2 . . 2 4 Hackware 1 | . . . . . . . . . . . . . . . 1 . . . . Protection 20 | . . . 1 . 4 . . . . . . 1 . 2 4 . 1 . 7 Artifact . | . . . . . . . . . . . . . . . . . . . . Weapon 82 | 2 . 9 1 12 10 3 . 1 . . . . 1 12 5 2 4 4 16 Energy Gun 7 | . . 3 1 3 . . . . . . . . . . . . . . . Energy Cannon 4 | . . 1 . . 1 . . . . . . . . . . . . . 2 Ballistic Gun 45 | 2 . 2 . 7 7 1 . 1 . . . . . 6 5 2 2 2 8 Ballistic Cannon 8 | . . . . . . 2 . . . . . . . 4 . . 1 . 1 Launcher 5 | . . 1 . 2 . . . . . . . . . 1 . . . . 1 Special Weapon 2 | . . 2 . . . . . . . . . . . . . . . . . Impact Weapon . | . . . . . . . . . . . . . . . . . . . . Slashing Weapon 11 | . . . . . 2 . . . . . . . 1 1 . . 1 2 4 Piercing Weapon . | . . . . . . . . . . . . . . . . . . . . Special Melee Weapon . | . . . . . . . . . . . . . . . . . . . . Unidentified Prototypes 13 | . . 1 . 2 1 1 . . . . . . . . 3 . 2 . 3 Corrupted Parts 5 | . . . . 2 . . . . . . . . . . . . . . 3 System Corruption 15 | . . . . 4 . . . . . . . . . . . . . . 11 Parts Lost 58 | . . 8 . 8 7 . . . . . . . . 3 . . 2 1 29 Power 7 | . . 1 . 1 1 . . . . . . . . 1 . . . . 3 Propulsion 10 | . . 2 . 2 2 . . . . . . . . . . . 1 . 3 Utility 18 | . . 1 . 2 1 . . . . . . . . 2 . . . 1 11 Weapon 23 | . . 4 . 3 3 . . . . . . . . . . . 1 . 12 Highest Loss Streak 10 | . . 5 . 4 5 . . . . . . . . 3 . . 1 1 10 Average Slot Usage (%) 86 | . 87 73 100 93 96 91 92 89 93 93 93 93 87 87 86 88 89 93 66 Engine 3 | . 14 10 11 9 14 8 . . . . . . . . . . . 3 . Core 1 | . . . . . . . . . . . . . . . 5 5 5 5 1 Reactor 6 | . . . . . . 6 15 13 13 13 13 13 11 10 5 5 5 1 3 Treads 5 | . . 7 . 6 3 . . 2 6 6 6 6 . . . . 6 15 11 Wheel 6 | . 28 9 22 11 7 7 7 6 6 6 6 6 10 11 11 11 6 . . Device 11 | . 1 3 11 7 10 15 15 13 13 13 13 18 17 11 9 10 11 11 11 Storage 6 | . 14 12 16 9 7 7 7 6 6 6 6 6 5 5 5 5 5 5 3 Processor 17 | . . 10 11 21 23 23 23 20 20 20 20 13 16 15 7 17 17 24 15 Protection 2 | . . . 6 1 4 . . . . . . . . 5 11 5 5 5 3 Ballistic Gun 14 | . 28 7 5 14 16 6 7 13 13 13 13 13 11 19 22 23 22 15 9 Ballistic Cannon 4 | . . . . . . 12 15 13 13 13 13 13 8 2 . . . . . Slashing Weapon 1 | . . . . . 2 2 . . . . . . 1 . . . . 4 2 Naked Turns 40 | . . . . . . . . . . . . . . . . . . . 40 Heaviest Build 116 | 12 27 33 38 44 58 79 79 84 84 79 79 90 80 97 101 94 94 75 116 Greatest Support 145 | 26 32 40 22 48 28 28 28 28 28 28 28 28 56 56 56 56 134 134 145 Greatest Overweight (x) 5 | 1 1 2 1 3 5 2 2 2 2 2 2 3 1 1 1 1 3 . . Average Overweight (x) 1 | . . 1 1 . 2 1 2 2 2 2 2 2 1 1 1 1 . . . Largest Inventory Capacity 15 | 8 15 15 15 15 15 15 15 15 15 15 15 15 15 15 15 15 15 15 15 Average Capacity 14 | 7 14 15 15 15 15 15 15 15 15 15 15 15 15 15 15 15 15 15 12 Most Carried 15 | 4 7 15 15 15 15 15 15 15 15 15 15 15 15 15 15 15 15 15 15 Average Carried 13 | 1 5 10 14 14 14 14 15 14 15 14 14 15 13 14 14 14 14 14 10 Final Capacity 15 | 8 15 15 15 15 15 15 15 15 15 15 15 15 15 15 15 15 15 15 5 Final Carried 15 | 4 7 14 15 15 15 15 15 15 15 14 15 15 15 15 15 15 15 14 1 Class Distribution -------------------- 30% | Scavenger-Skirmisher 21% | Scavenger-Assassin 15% | Scavenger-Gunner 12% | Mutant 8% | Gunner 6% | Scavenger-Tank Dominant Class ---------------- Mutant | -10/Materials Mutant | -9/Materials Mutant | -9/Mines Gunner | -8/Materials Gunner | -7/Factory Scavenger-Skirmisher | -7/Waste Scavenger-Skirmisher | -7/Factory Skirmisher | -6/Factory Scavenger-Skirmisher | -6/Lower Caves Scavenger-Skirmisher | -6/Lower Caves Scavenger-Skirmisher | -6/Zion Scavenger-Skirmisher | -5/Proximity Caves Scavenger-Skirmisher | -5/Factory Scavenger-Gunner | -5/Extension Scavenger-Tank | -5/Cetus Scavenger-Gunner | -5/Archives Scavenger-Gunner | -5/Hub_04(d) Scavenger-Assassin | -4/Factory Scavenger-Assassin | -3/Research Resources | -11 -10 -9 -9 -8 -7 -7 -7 -6 -6 -6 -6 -5 -5 -5 -5 -5 -5 -4 -3 ----------- Run | Scr Mat Mat Min Mat Fac Was Fac Fac Low Low Zio Pro Fac Ext Cet Arc Hub Fac Res Matter Collected 7313 | 228 159 348 71 549 923 185 7 30 92 251 65 114 . 979 583 106 691 308 1624 Remotely . | . . . . . . . . . . . . . . . . . . . . Salvage Created 10277 | . 225 363 48 1222 1597 140 . 82 . 164 . 153 . 1562 572 280 1257 431 2181 Parts 499 | . 16 23 2 65 76 8 . 3 . 8 . 2 . 60 31 10 66 14 115 Haulers Intercepted 6 | . 1 . . 1 2 . . . . . . . . . . . . . 2 Recyclers Shooed 5 | . 2 2 . . . . . . . . . . . . . . . . 1 Parts Field Recycled . | . . . . . . . . . . . . . . . . . . . . Retrieved Matter . | . . . . . . . . . . . . . . . . . . . . Parts Self-Destructed 13 | . . . . . . . . . 2 9 1 1 . . . . . . . Prevented . | . . . . . . . . . . . . . . . . . . . . Kills | -11 -10 -9 -9 -8 -7 -7 -7 -6 -6 -6 -6 -5 -5 -5 -5 -5 -5 -4 -3 ------- Run | Scr Mat Mat Min Mat Fac Was Fac Fac Low Low Zio Pro Fac Ext Cet Arc Hub Fac Res Combat Hostiles Destroyed 163 | . 6 12 1 28 25 . . 1 . 4 . 3 . 18 8 3 17 5 32 Guns 130 | . 6 5 1 19 25 . . . . 2 . 1 . 12 8 3 17 5 26 Cannons 19 | . . 4 . . . . . 1 . 2 . 2 . 4 . . . . 6 AOE 14 | . . 3 . 9 . . . . . . . . . 2 . . . . . Classes Destroyed 16 | . 3 2 1 3 2 . . . . . . . . 2 . . 1 . 2 Worker 11 | . . . 1 2 3 . . 1 . . . . . . . . 3 . 1 Builder 8 | . . 1 . 1 . . . . . . . . . 1 . . 3 . 2 Tunneler 1 | . . . . 1 . . . . . . . . . . . . . . . Hauler 6 | . 1 . . 1 2 . . . . . . . . . . . . . 2 Recycler 2 | . . . . . . . . . . . . . . 1 . . . 1 . Operator 1 | . . . . . . . . . . . . . . . . . . . 1 Watcher 8 | . . . . 1 2 . . . . . . . . . 2 . 1 . 2 Swarmer 37 | . 3 6 . 11 1 . . . . 3 . . . . . . 1 . 12 Grunt 63 | . 3 4 1 12 13 . . . . 1 . 3 . 10 . . 9 2 5 Brawler 8 | . . 2 . . 2 . . . . . . . . 1 . . 2 . 1 Duelist 2 | . . . . . . . . . . . . . . . . . . . 2 Protector 1 | . . . . . 1 . . . . . . . . . . . . . . Sentry 25 | . . . . 5 6 . . 1 . . . . . 5 . 3 1 1 3 Hunter 4 | . . . . . . . . . . . . . . . . . 2 . 2 Programmer 13 | . . . . . 2 . . . . . . . . . 2 . . 2 7 Heavy 3 | . . . . . . . . . . . . . . 1 . . 2 . . Cetus Guard 6 | . . . . . . . . . . . . . . . 6 . . . . Wasp 1 | . . . . . . 1 . . . . . . . . . . . . . Thug 7 | . . . . . . 2 . . . 1 . . . 4 . . . . . Savage 1 | . . . . . . . . . . . . . . 1 . . . . . Best Kill Streak 14 | . 2 6 2 13 14 . . 1 . 3 . 3 . 8 3 3 6 2 8 Combat Bots Only 11 | . 2 5 1 11 7 . . 1 . 3 . 3 . 8 2 3 6 2 8 Max Kills in Single Turn 4 | . 2 3 1 4 2 2 . 1 . 1 . 1 . 3 1 1 2 1 2 Gunslinging 1 | . 1 . . 1 . . . . . . . . . 1 . . 1 . 1 Exploded 4 | . . 2 . 4 . . . . . . . . . 1 . . . . . Melee . | . . . . . . . . . . . . . . . . . . . . Uniques/NPCs Destroyed . | . . . . . . . . . . . . . . . . . . . . Combat | -11 -10 -9 -9 -8 -7 -7 -7 -6 -6 -6 -6 -5 -5 -5 -5 -5 -5 -4 -3 -------- Run | Scr Mat Mat Min Mat Fac Was Fac Fac Low Low Zio Pro Fac Ext Cet Arc Hub Fac Res Damage Taken 15962 | . 164 842 . 1519 1680 . 55 . . 260 . 269 . 1142 928 29 1756 630 6688 Core 2118 | . 21 236 . 224 233 . 34 . . 28 . . . 95 20 . 158 21 1048 Absorbed by Shields 378 | . . . . . . . . . . . . . . 80 . . . 21 277 Reduced by Siege Mode 71 | . . . . . . . . . . . . . . . . . 41 . 30 Core Remaining (%) 77 | 100 91 . 41 59 . . 61 . . . . 96 . . . . 72 98 . Volleys Fired 477 | . 30 45 3 56 76 3 3 4 . 17 . 7 4 51 23 5 43 14 93 Largest 4 | . 2 2 2 3 3 3 3 4 . 4 . 4 1 4 4 4 4 4 4 Hottest 175 | . 40 120 136 175 128 139 139 167 . 167 . 167 57 167 140 140 140 138 172 Shots Fired 1324 | . 60 69 6 141 226 9 9 16 . 64 . 22 4 165 91 19 146 44 233 Gun 1167 | . 60 53 3 132 221 3 3 8 . 32 . 14 . 130 91 19 146 44 208 Cannon 145 | . . 12 3 4 5 6 6 8 . 32 . 8 4 33 . . . . 24 Launcher 10 | . . 2 . 5 . . . . . . . . . 2 . . . . 1 Special 2 | . . 2 . . . . . . . . . . . . . . . . . Kinetic 1209 | . 60 32 . 83 221 9 9 16 . 64 . 22 4 163 91 19 146 44 226 Thermal 65 | . . 23 3 34 5 . . . . . . . . . . . . . . Explosive 3 | . . . . . . . . . . . . . . 2 . . . . 1 Electromagnetic 47 | . . 14 3 24 . . . . . . . . . . . . . . 6 Robot Hit Streak 27 | . 8 18 4 27 15 5 3 5 . 2 . 4 . 15 15 4 12 9 13 Robot Miss Streak 11 | . 6 5 1 3 4 3 5 2 . 11 . 3 . 2 3 1 7 3 10 Penetration Max 1 | . . . . . . . . . . . . 1 . 1 1 1 1 1 1 Secondary Targets 28 | . 1 1 . 2 7 . . . . . . . . 3 4 . 5 . 5 Max Gunslinging Chain 2 | . 1 1 . 1 1 . . . . . . . . 1 1 . 2 . 1 Shots Hit Robots 824 | . 35 43 3 94 162 5 5 10 . 14 . 11 . 98 70 13 91 30 140 Core Hits 432 | . 14 21 2 53 77 3 1 5 . 10 . 7 . 59 29 8 48 11 84 Critical Kills 44 | . . . . . . 2 . 1 . 2 . 1 . 7 6 2 8 4 11 Critical Parts Destroyed 66 | . . . . . 2 . 1 2 . 2 . 4 . 2 5 1 19 6 22 Critical Strikes 130 | . . 1 . 3 2 4 1 3 . 4 . 5 . 15 13 4 29 11 35 Burn 4 | . . 1 . 3 . . . . . . . . . . . . . . . Destroy 126 | . . . . . 2 4 1 3 . 4 . 5 . 15 13 4 29 11 35 Melee Attacks 68 | . . . . . 7 . . . . . . . 7 5 . . 6 17 26 Impact . | . . . . . . . . . . . . . . . . . . . . Slashing 68 | . . . . . 7 . . . . . . . 7 5 . . 6 17 26 Piercing . | . . . . . . . . . . . . . . . . . . . . Sneak Attacks 1 | . . . . . . . . . . . . . . . . . 1 . . Combat Hostiles . | . . . . . . . . . . . . . . . . . . . . Follow-up Attacks . | . . . . . . . . . . . . . . . . . . . . Damage Inflicted 21724 | . 295 724 45 2261 3030 209 95 182 . 367 . 367 . 3308 1904 367 3042 837 4691 Guns 17986 | . 295 357 45 1544 2905 52 23 89 . 183 . 165 . 2533 1904 367 2877 837 3810 Cannons 2175 | . . 164 . 69 125 157 72 93 . 184 . 202 . 457 . . . . 652 Explosions 1403 | . . 179 . 648 . . . . . . . . . 312 . . 69 . 195 Melee 96 | . . . . . . . . . . . . . . . . . 96 . . Ramming 40 | . . . . . . . . . . . . . . 6 . . . . 34 Kinetic 18701 | . 295 181 . 836 2905 209 95 182 . 367 . 367 . 2990 1904 367 2877 837 4289 Thermal 1051 | . . 235 45 646 125 . . . . . . . . . . . . . . Explosive 507 | . . . . . . . . . . . . . . 312 . . . . 195 Electromagnetic 1329 | . . 308 . 779 . . . . . . . . . . . . 69 . 173 Impact . | . . . . . . . . . . . . . . . . . . . . Slashing 96 | . . . . . . . . . . . . . . . . . 96 . . Piercing . | . . . . . . . . . . . . . . . . . . . . Highest Corruption 43 | . . 3 3 4 . . . . . . . . . 8 8 8 15 1 43 Average Corruption 8 | . . 3 3 3 . . . . . . . . . 1 8 8 9 1 19 Corruption Purged . | . . . . . . . . . . . . . . . . . . . . Effects 106 | . . 1 2 12 . . . . . . . . . 4 21 4 16 . 46 Message Errors 32 | . . . 1 6 . . . . . . . . . 2 6 1 4 . 12 Matter Fused 22 | . . 1 1 1 . . . . . . . . . . 7 . 3 . 9 Heat Flow Errors 12 | . . . . . . . . . . . . . . 1 2 1 1 . 7 Energy Discharges 11 | . . . . 2 . . . . . . . . . . 1 1 1 . 6 Data Loss (minor) 14 | . . . . 3 . . . . . . . . . . 3 . 4 . 4 Data Loss (major) 5 | . . . . . . . . . . . . . . . 1 . 1 . 3 Misfires 3 | . . . . . . . . . . . . . . 1 . . 2 . . Alerts 1 | . . . . . . . . . . . . . . . . . . . 1 Misdirections 1 | . . . . . . . . . . . . . . . . . . . 1 Weapon Failures 5 | . . . . . . . . . . . . . . . 1 1 . . 3 Overload Shots . | . . . . . . . . . . . . . . . . . . . . Overflow Damage 20 | . . . . 14 . . . . . . . . . 1 . . . . 5 Projectiles 5 | . . . . . . . . . . . . . . . . . . . 5 Explosions 15 | . . . . 14 . . . . . . . . . 1 . . . . . Melee . | . . . . . . . . . . . . . . . . . . . . Knockbacks 7 | . . . . . . . 1 . . 2 . 2 . 1 . . . . 1 Impact . | . . . . . . . . . . . . . . . . . . . . Kinetic 7 | . . . . . . . 1 . . 2 . 2 . 1 . . . . 1 Secondary . | . . . . . . . . . . . . . . . . . . . . Self-Inflicted Damage 338 | . . 69 . 86 . . . . . . . . . 3 . . 99 . 81 Shots 10 | . . 3 . 5 . . . . . . . . . . . . 1 . 1 Rammed 2 | . . . . . . . . . . . . . . 1 . . . . 1 Targets Rammed 2 | . . . . . . . . . . . . . . 1 . . . . 1 Kicked . | . . . . . . . . . . . . . . . . . . . . Crushed . | . . . . . . . . . . . . . . . . . . . . Highest Temperature 513 | . 6 86 168 380 135 204 211 234 . 445 . 513 . 289 354 105 457 . 468 Average Temperature 114 | . 6 18 95 82 26 116 91 91 . 165 . 306 . 77 121 50 151 . 178 Received Heat Transfer 2602 | . 54 141 . 558 597 . 9 . . 84 . 109 . 315 45 . 183 87 420 Effects 27 | . . . . 3 . . . . . 7 . 5 . . . . 4 . 8 Shutdowns 12 | . . . . 1 . . . . . 2 . 3 . . . . 2 . 4 Energy Bleed 3 | . . . . 1 . . . . . 1 . . . . . . . . 1 Interference 4 | . . . . . . . . . . 4 . . . . . . . . . Matter Decay 1 | . . . . . . . . . . . . . . . . . . . 1 Short Circuit 2 | . . . . . . . . . . . . 1 . . . . . . 1 Damage (minor) 3 | . . . . 1 . . . . . . . 1 . . . . . . 1 Damage (major) 2 | . . . . . . . . . . . . . . . . . 2 . . Siege Activations 2 | . . . . . . . . . . . . . . . . . 1 . 1 Total Turns 51 | . . . . . . . . . . . . . . . . . 28 . 23 Longest Duration 28 | . . . . . . . . . . . . . . . . . 28 . 23 Robots Corrupted . | . . . . . . . . . . . . . . . . . . . . Combat Hostiles . | . . . . . . . . . . . . . . . . . . . . Parts Fried 6 | . . . . 4 . . . . . . . . . 1 . . . . 1 Impact Corruptions . | . . . . . . . . . . . . . . . . . . . . Robots Melted . | . . . . . . . . . . . . . . . . . . . . Combat Hostiles . | . . . . . . . . . . . . . . . . . . . . Parts Melted 11 | . . . 1 4 . . . . . . . . . 6 . . . . . Heat Transferred 2417 | . . 692 100 1440 185 . . . . . . . . . . . . . . Parts Sabotaged . | . . . . . . . . . . . . . . . . . . . . Parts Stolen . | . . . . . . . . . . . . . . . . . . . . Parts Stripped . | . . . . . . . . . . . . . . . . . . . . Power Chain Reactions 2 | . . 1 . 1 . . . . . . . . . . . . . . . Missiles Intercepted . | . . . . . . . . . . . . . . . . . . . . Alert | -11 -10 -9 -9 -8 -7 -7 -7 -6 -6 -6 -6 -5 -5 -5 -5 -5 -5 -4 -3 ------- Run | Scr Mat Mat Min Mat Fac Was Fac Fac Low Low Zio Pro Fac Ext Cet Arc Hub Fac Res Peak Influence 1425 | . 221 387 113 674 711 237 508 160 . . . . 31 774 985 573 1404 827 1425 Initial 687 | . . 92 78 43 306 187 165 28 . . . . . 14 432 394 200 687 366 Average 510 | . 109 170 89 403 535 215 312 85 . . . . 15 359 652 540 916 708 782 Maximum Alert Level 4 | . 1 1 . 2 3 1 2 . . . . . . 3 3 2 4 3 4 Low Security (%) 19 | 100 82 77 100 7 . 34 38 100 . . . . 100 23 . . . . . Level 1 19 | . 17 22 . 48 22 65 12 . . . . . . 41 2 8 11 . 8 Level 2 40 | . . . . 43 63 . 48 . . . . . . 28 48 91 11 65 55 Level 3 12 | . . . . . 14 . . . . . . . . 7 49 . 36 34 7 Level 4 8 | . . . . . . . . . . . . . . . . . 40 . 28 Level 5 . | . . . . . . . . . . . . . . . . . . . . High Security . | . . . . . . . . . . . . . . . . . . . . Max Security . | . . . . . . . . . . . . . . . . . . . . Squads Dispatched 47 | . 2 1 1 3 7 . 3 2 . . . . . 6 . . 6 4 12 Investigation 7 | . . 1 1 1 . . . . . . . . . 4 . . . . . Extermination 8 | . . . . . 2 . 1 . . . . . . . . . . 1 4 Reinforcement 20 | . 2 . . 2 1 . 1 2 . . . . . 1 . . 5 2 4 Assault 5 | . . . . . 1 . . . . . . . . 1 . . 1 1 1 Garrison 7 | . . . . . 3 . 1 . . . . . . . . . . . 3 Intercept . | . . . . . . . . . . . . . . . . . . . . Construction Impeded 6 | . . . . 1 . . . . . . . . . 1 . . 2 1 1 Haulers Reinforced 1 | . . . . . . . . . . . . . . . . . . . 1 Active Scanning Responses . | . . . . . . . . . . . . . . . . . . . . Cargo Convoy Interrupts 1 | . . . . . . . . . . . . . . . . . . . 1 Stealth | -11 -10 -9 -9 -8 -7 -7 -7 -6 -6 -6 -6 -5 -5 -5 -5 -5 -5 -4 -3 --------- Run | Scr Mat Mat Min Mat Fac Was Fac Fac Low Low Zio Pro Fac Ext Cet Arc Hub Fac Res Distress Signals 21 | . . 2 . 3 3 . 1 . . . . . . 5 2 . 2 . 3 Communications Jammed 12 | . . . . . . . . . . . . . . . . . . . 12 Distress Signals 11 | . . . . . . . . . . . . . . . . . . . 11 Times Spotted 308 | . 11 19 2 39 37 2 4 2 . 11 . 10 1 46 15 4 25 10 70 Peak Tracking Total 21 | . 4 8 2 10 7 2 3 1 . 4 . 4 1 6 5 1 6 6 21 Tactical Retreats 24 | . 1 1 . 3 3 . . . . . . 1 . 5 . . . . 10 Traps | -11 -10 -9 -9 -8 -7 -7 -7 -6 -6 -6 -6 -5 -5 -5 -5 -5 -5 -4 -3 ------- Run | Scr Mat Mat Min Mat Fac Was Fac Fac Low Low Zio Pro Fac Ext Cet Arc Hub Fac Res Traps Triggered 15 | . . 3 . 1 3 . . . . . . . . 5 . . 2 . 1 Indirectly . | . . . . . . . . . . . . . . . . . . . . Trap Hack Attempts . | . . . . . . . . . . . . . . . . . . . . Triggered . | . . . . . . . . . . . . . . . . . . . . Disarmed . | . . . . . . . . . . . . . . . . . . . . Reprogrammed . | . . . . . . . . . . . . . . . . . . . . Reused . | . . . . . . . . . . . . . . . . . . . . Traps Extracted . | . . . . . . . . . . . . . . . . . . . . Installed . | . . . . . . . . . . . . . . . . . . . . Triggered 2 | . . . . . . . . . 2 . . . . . . . . . . Machines | -11 -10 -9 -9 -8 -7 -7 -7 -6 -6 -6 -6 -5 -5 -5 -5 -5 -5 -4 -3 ---------- Run | Scr Mat Mat Min Mat Fac Was Fac Fac Low Low Zio Pro Fac Ext Cet Arc Hub Fac Res Machines Disabled 22 | . . 2 . 2 . . . 2 . . . . . 1 2 2 8 . 3 Max in Single Turn 6 | . . 1 . 1 . . . 1 . . . . . 1 . 1 6 . 1 Garrison Access 2 | . . . . . 2 . . . . . . . . . . . . . . Network Hub 1 | . . . . . . . . . . . . . . . . . 1 . . Machines Sabotaged . | . . . . . . . . . . . . . . . . . . . . Garrisons Compromised . | . . . . . . . . . . . . . . . . . . . . Overloaded Fab Kills . | . . . . . . . . . . . . . . . . . . . . Fab Network Shutdowns . | . . . . . . . . . . . . . . . . . . . . Hacking | -11 -10 -9 -9 -8 -7 -7 -7 -6 -6 -6 -6 -5 -5 -5 -5 -5 -5 -4 -3 --------- Run | Scr Mat Mat Min Mat Fac Was Fac Fac Low Low Zio Pro Fac Ext Cet Arc Hub Fac Res Machines Accessed 39 | . 1 1 2 1 9 . 3 . . 1 1 . 1 10 2 1 1 1 4 Terminals 25 | . 1 1 1 1 4 . 1 . . . . . 1 10 2 . 1 1 1 Fabricators 2 | . . . . . 2 . . . . . . . . . . . . . . Repair Stations 2 | . . . . . . . 1 . . . . . . . . . . . 1 Recycling Units 2 | . . . . . 1 . 1 . . . . . . . . . . . . Scanalyzers 1 | . . . . . . . . . . . . . . . . . . . 1 Garrison Access 3 | . . . . . 2 . . . . . . . . . . . . . 1 Total Hacks 97 | . 3 3 3 3 11 . 9 . . 1 6 . 1 19 5 25 1 1 6 Successful 61 | . 3 2 1 1 5 . 4 . . 1 6 . . 8 3 25 1 . 1 Failed 36 | . . 1 2 2 6 . 5 . . . . . 1 11 2 . . 1 5 Catastrophic 10 | . . 1 . . 3 . . . . . . . 1 1 . . . . 4 Database Lockouts . | . . . . . . . . . . . . . . . . . . . . Manual 14 | . . 4 2 . 3 . . . . . 1 . . 1 1 . 1 . 1 Terminals 50 | . 3 3 2 3 5 . 6 . . . . . 1 19 5 . 1 1 1 Fabricators 2 | . . . . . 2 . . . . . . . . . . . . . . Repair Stations 2 | . . . . . . . 1 . . . . . . . . . . . 1 Recycling Units 4 | . . . . . 2 . 2 . . . . . . . . . . . . Scanalyzers 3 | . . . . . . . . . . . . . . . . . . . 3 Garrison Access 3 | . . . . . 2 . . . . . . . . . . . . . 1 Terminal Hacks 51 | . 3 1 1 1 . . 3 . . 1 6 . . 7 3 25 . . . Record 27 | . . . . . . . . . . . . . . . 2 25 . . . Part Schematic 6 | . . . . . . . . . . . 6 . . . . . . . . Prototype ID Bank 2 | . 1 . . . . . . . . . . . . 1 . . . . . Open Door 7 | . . . 1 . . . . . . 1 . . . 4 1 . . . . Branch Access Points 1 | . . . . 1 . . . . . . . . . . . . . . . Alert Level 1 | . . . . . . . . . . . . . . 1 . . . . . Unreport Threat 3 | . . . . . . . 3 . . . . . . . . . . . . Locate Traps 1 | . . . . . . . . . . . . . . 1 . . . . . Dispatch Records 1 | . 1 . . . . . . . . . . . . . . . . . . Zone Layout 2 | . 1 1 . . . . . . . . . . . . . . . . . Fabricator Hacks 2 | . . . . . 2 . . . . . . . . . . . . . . Build 2 | . . . . . 2 . . . . . . . . . . . . . . Repair Station Hacks . | . . . . . . . . . . . . . . . . . . . . Recycling Unit Hacks 2 | . . . . . 1 . 1 . . . . . . . . . . . . Retrieve Components 2 | . . . . . 1 . 1 . . . . . . . . . . . . Scanalyzer 1 | . . . . . . . . . . . . . . . . . . . 1 Insert Component 1 | . . . . . . . . . . . . . . . . . . . 1 Garrison Access Hacks 2 | . . . . . 2 . . . . . . . . . . . . . . Seal Access 2 | . . . . . 2 . . . . . . . . . . . . . . Unauthorized Hacks 3 | . . 1 . . . . . . . . . . . 1 . . 1 . . Terminals 3 | . . 1 . . . . . . . . . . . 1 . . 1 . . Botnet 3 | . . 1 . . . . . . . . . . . 1 . . 1 . . Fabricators . | . . . . . . . . . . . . . . . . . . . . Repair Stations . | . . . . . . . . . . . . . . . . . . . . Recycling Units . | . . . . . . . . . . . . . . . . . . . . Scanalyzers . | . . . . . . . . . . . . . . . . . . . . Garrison Access . | . . . . . . . . . . . . . . . . . . . . Data Cores Recovered . | . . . . . . . . . . . . . . . . . . . . Used . | . . . . . . . . . . . . . . . . . . . . Hacking Detections 26 | . . 1 1 1 6 . 2 . . . . . 1 8 2 . 1 . 3 Full Trace Events 5 | . . 1 . . . . . . . . . . . 4 . . . . . Feedback Events 1 | . . . . . . . . . . . . . . 1 . . . . . Corruption 1 | . . . . . . . . . . . . . . 1 . . . . . Feedback Blocked . | . . . . . . . . . . . . . . . . . . . . Robot Schematics Acquired . | . . . . . . . . . . . . . . . . . . . . Robots Built 2 | . . . . . 2 . . . . . . . . . . . . . . Matter 219 | . . . . . 219 . . . . . . . . . . . . . . Time 116 | . . . . . 116 . . . . . . . . . . . . . . Total Robot Build Rating 6 | . . . . . 6 . . . . . . . . . . . . . . Part Schematics Acquired 6 | . . . . . . . . . . . 6 . . . . . . . . Parts Built 1 | . . . . . 1 . . . . . . . . . . . . . . Matter 190 | . . . . . 190 . . . . . . . . . . . . . . Time 95 | . . . . . 95 . . . . . . . . . . . . . . Total Part Build Rating 5 | . . . . . 5 . . . . . . . . . . . . . . Parts Repaired . | . . . . . . . . . . . . . . . . . . . . Time . | . . . . . . . . . . . . . . . . . . . . Parts Recycled . | . . . . . . . . . . . . . . . . . . . . Recycled Matter . | . . . . . . . . . . . . . . . . . . . . Retrieved Matter . | . . . . . . . . . . . . . . . . . . . . Retrieved Components . | . . . . . . . . . . . . . . . . . . . . Parts Scanalyzed 1 | . . . . . . . . . . . . . . . . . . . 1 Part Schematics Acquired . | . . . . . . . . . . . . . . . . . . . . Parts Damaged . | . . . . . . . . . . . . . . . . . . . . Bothacking | -11 -10 -9 -9 -8 -7 -7 -7 -6 -6 -6 -6 -5 -5 -5 -5 -5 -5 -4 -3 ------------ Run | Scr Mat Mat Min Mat Fac Was Fac Fac Low Low Zio Pro Fac Ext Cet Arc Hub Fac Res Used RIF Installer . | . . . . . . . . . . . . . . . . . . . . Robots Hacked . | . . . . . . . . . . . . . . . . . . . . Non-combat . | . . . . . . . . . . . . . . . . . . . . Combat . | . . . . . . . . . . . . . . . . . . . . Robot Hacks Applied . | . . . . . . . . . . . . . . . . . . . . Relay Couplers Released . | . . . . . . . . . . . . . . . . . . . . Robots Rewired 18 | . . . . . . . . . . . . . . 18 . . . . . Allies Hacked . | . . . . . . . . . . . . . . . . . . . . Hacks Repelled . | . . . . . . . . . . . . . . . . . . . . Allies | -11 -10 -9 -9 -8 -7 -7 -7 -6 -6 -6 -6 -5 -5 -5 -5 -5 -5 -4 -3 -------- Run | Scr Mat Mat Min Mat Fac Was Fac Fac Low Low Zio Pro Fac Ext Cet Arc Hub Fac Res Total Allies 50 | . . . . . 2 20 . . . . . . . 24 4 . . . . Largest Group 20 | . . . . . 2 20 14 9 9 9 . . . 9 4 4 3 . . Highest-Rated Group 508 | . . . . . 38 508 384 287 284 283 . . . 383 380 374 279 . . Highest-Rated Ally 156 | . . . . . 19 35 35 35 33 33 . . . 156 144 95 95 . . Total Orders 7 | . . . . . 2 . . 2 1 . . . . . 2 . . . . STAY 1 | . . . . . . . . . . . . . . . 1 . . . . ROAM 2 | . . . . . 2 . . . . . . . . . . . . . . FOLLOW 1 | . . . . . . . . . . . . . . . 1 . . . . EXPLORE 3 | . . . . . . . . 2 1 . . . . . . . . . . Ally Attacks 488 | . . . . . . 113 47 10 . 51 . . . 197 46 6 18 . . Total Damage 10650 | . . . . . . 2757 1259 188 . 819 . . . 3755 1229 181 462 . . Kills 66 | . . . . . . 9 12 1 . 5 . . . 24 10 1 4 . . Allies Corrupted . | . . . . . . . . . . . . . . . . . . . . Allies Melted . | . . . . . . . . . . . . . . . . . . . . Intel | -11 -10 -9 -9 -8 -7 -7 -7 -6 -6 -6 -6 -5 -5 -5 -5 -5 -5 -4 -3 ------- Run | Scr Mat Mat Min Mat Fac Was Fac Fac Low Low Zio Pro Fac Ext Cet Arc Hub Fac Res Robot Analysis Total . | . . . . . . . . . . . . . . . . . . . . Derelict Logs Recovered 8 | . . . 2 . . . . . 1 1 2 2 . . . . . . . Drone Launches 3 | . . . . . . . . 2 1 . . . . . . . . . . Drone Recoveries 1 | . . . . . . . . 1 . . . . . . . . . . . Exploration | -11 -10 -9 -9 -8 -7 -7 -7 -6 -6 -6 -6 -5 -5 -5 -5 -5 -5 -4 -3 ------------- Run | Scr Mat Mat Min Mat Fac Was Fac Fac Low Low Zio Pro Fac Ext Cet Arc Hub Fac Res Turns Passed 12119 | 46 220 448 113 739 1657 302 272 302 474 401 1116 698 359 1106 602 107 483 637 2037 Spaces Moved 7153 | 37 132 187 96 421 1087 197 200 211 361 269 857 496 273 602 381 70 238 318 720 Core 76 | 2 . . . . . . . . . . . . . . . . . . 74 Treads 1157 | . . 53 . 78 . . . . . . . . . . . . 62 318 646 Legs 21 | . . 21 . . . . . . . . . . . . . . . . . Wheels 5899 | 35 132 113 96 343 1087 197 200 211 361 269 857 496 273 602 381 70 176 . . Hover . | . . . . . . . . . . . . . . . . . . . . Flight . | . . . . . . . . . . . . . . . . . . . . Fastest Speed 50 | 50 90 90 100 95 110 115 130 130 130 130 130 130 115 115 115 115 115 166 50 Average Speed 128 | 88 99 154 100 110 128 126 130 130 130 130 130 130 115 115 115 115 129 166 149 Slowest Speed 260 | 100 105 260 100 260 155 130 130 130 130 130 130 145 115 115 115 115 166 166 166 Overloaded Moves . | . . . . . . . . . . . . . . . . . . . . Propulsion Burnouts . | . . . . . . . . . . . . . . . . . . . . Robots Hopped 1 | . . . . . . . . . . 1 . . . . . . . . . Cave-ins Triggered 2 | . . . . . . . . . . . . . . 1 . . . . 1 Exploration Rate (%) 42 | 3 29 24 32 38 37 95 12 8 58 58 84 49 10 64 89 88 31 16 26 Regions Visited 19 Branch Regions 9 Pre-discovered Areas 2 | . . . 1 . . . . . . . 1 . . . . . . . . Known Exits Taken 13 | . . 1 1 1 . . 1 1 1 1 1 1 . . 1 1 1 1 . Unknown Exits Taken 4 | 1 1 . . . . . . . . . . . 1 1 . . . . . Scrap Searched 9 | . . . . . . . . . 2 1 4 2 . . . . . . . Spaces Dug 86 | . . 1 . . 7 . . . . 4 . . 9 16 . . 6 17 26 Terrain Destroyed 451 | . . 5 . 7 7 2 2 3 . 21 . 11 9 33 9 8 231 34 69 Melee 60 | . . . . . 7 . . . . . . . 7 . . . 3 17 26 Projectile 190 | . . 1 . . . 2 2 3 . 21 . 11 2 31 9 8 58 17 25 AOE 201 | . . 4 . 7 . . . . . . . . . 2 . . 170 . 18 Terrain Rammed 7 | . . . . . . . . . . . . . . . . . . . 7 Walls Destroyed . | . . . . . . . . . . . . . . . . . . . . Machines Disabled . | . . . . . . . . . . . . . . . . . . . . Actions | -11 -10 -9 -9 -8 -7 -7 -7 -6 -6 -6 -6 -5 -5 -5 -5 -5 -5 -4 -3 --------- Run | Scr Mat Mat Min Mat Fac Was Fac Fac Low Low Zio Pro Fac Ext Cet Arc Hub Fac Res Total 9174 | 46 172 277 105 600 1263 246 206 230 365 285 859 532 305 925 504 88 337 370 1459 Wait 801 | . 5 2 1 59 9 31 4 7 4 . . 24 11 30 66 8 34 1 505 Move 7133 | 36 131 186 95 420 1087 196 199 210 360 266 856 495 272 601 380 69 237 317 720 Hop 1 | . . . . . . . . . . 1 . . . . . . . . . Pick Up 96 | 4 3 14 1 13 17 2 . 2 . . 2 . 4 8 3 . 2 4 17 Fast Attach 106 | 6 2 12 2 13 13 5 . 2 . . . 1 . 4 11 2 2 2 29 Attach 56 | . . 9 . 9 8 . . 1 . . . . 2 1 1 1 4 2 18 Detach 14 | . . 3 . 1 2 1 . 1 . . . . . . . 1 1 . 4 Swap 83 | . . 3 1 11 13 1 . 1 1 . . 4 2 16 4 . 4 8 14 Drop 132 | . 1 3 2 18 31 7 . 2 . 1 1 1 3 11 16 2 4 5 24 Fire 477 | . 30 45 3 56 76 3 3 4 . 17 . 7 4 51 23 5 43 14 93 Melee 68 | . . . . . 7 . . . . . . . 7 5 . . 6 17 26 Ram 9 | . . . . . . . . . . . . . . 1 . . . . 8 Kick . | . . . . . . . . . . . . . . . . . . . . Crush 1 | . . . . . . . . . . . . . . . . . . . 1 Escape Stasis 23 | . . . . . . . . . . . . . . 23 . . . . . Rewire 174 | . . . . . . . . . . . . . . 174 . . . . . Trap . | . . . . . . . . . . . . . . . . . . . . Miscellaneous . | . . . . . . . . . . . . . . . . . . . . Route ------- -11/Scrapyard -10/Materials -9/Materials -9/Mines -8/Materials -7/Factory -7/Waste -7/Factory -6/Factory -6/Lower Caves -6/Lower Caves (discovered 2 exits: *Fac / *Zio) -6/Zion -5/Proximity Caves -5/Factory (discovered 3 exits: *Fac / [*Upp] / *Ext) -5/Extension (discovered 2 exits: *Fac / *Cet) -5/Cetus (discovered 2 exits: *Fac / *Arc) -5/Archives (discovered 3 exits: *Fac / *Hub x2) -5/Hub_04(d) -4/Factory -3/Research History --------- Turn | Location | Event 20 | -11/Scrapyard | Discovered new exit (range 15) 47 | -11/Scrapyard | Entered Materials 186 | -10/Materials | Discovered new exit (range 7) 267 | -10/Materials | Entered another Materials area 267 | -9/Materials | Evolved 2 slots: Utility x2 347 | -9/Materials | Build established: Mutant 356 | -9/Materials | Lost 5 parts (2n1u2w) 613 | -9/Materials | Core integrity fell below 50% 630 | -9/Materials | Lost 3 parts (1p2w) 686 | -9/Materials | Discovered new exit (range 7) 712 | -9/Materials | Identified exit to Mines 715 | -9/Materials | Entered Mines 732 | -9/Mines | Learned location of Zion (-6) 757 | -9/Mines | Met a Derelict shopkeep closing up shop 819 | -9/Mines | Discovered new exit (range 8) 827 | -9/Mines | Identified exit to Materials 828 | -9/Mines | Entered Materials 828 | -8/Materials | Evolved 2 slots: Utility x1, Weapon x1 829 | -8/Materials | Identified exit to Factory 911 | -8/Materials | Lost 4 parts (1p1n1u1w) 912 | -8/Materials | Destroyed 7 combat bots 1306 | -8/Materials | Destroyed 11 combat bots 1567 | -8/Materials | Entered Factory 1567 | -7/Factory | Evolved 2 slots: Power x1, Utility x1 1934 | -7/Factory | Build established: Gunner 2303 | -7/Factory | Fabricated W-25 Informer? 2309 | -7/Factory | Fabricated Drone Bay? 2367 | -7/Factory | First assault squad dispatched 2419 | -7/Factory | Destroyed 7 combat bots 2468 | -7/Factory | Lost 5 parts (1p2n2w) 2889 | -7/Factory | Build established: Scavenger-Assassin 3217 | -7/Factory | Discovered new exit (range 14) 3224 | -7/Factory | Sucked down chute 3224 | -7/Factory | Entered Waste 3225 | -7/Waste | Met a frightened Derelict 3241 | -7/Waste | Warlord forces began an assault 3318 | -7/Waste | Spotted C-40 Crusher 3323 | -7/Waste | Allies destroyed C-40 Crusher 3326 | -7/Waste | Spotted C-40 Crusher 3330 | -7/Waste | Allies destroyed C-40 Crusher 3348 | -7/Waste | Spotted C-40 Crusher 3374 | -7/Waste | Spotted C-40 Crusher 3388 | -7/Waste | Allies destroyed C-40 Crusher 3388 | -7/Waste | Spotted C-40 Crusher 3390 | -7/Waste | Allies destroyed C-40 Crusher 3479 | -7/Waste | Discovered new exit (range 11) 3491 | -7/Waste | Identified exit to Factory 3526 | -7/Waste | Entered Factory 3526 | -7/Factory | Accompanied by 14 allies 3592 | -7/Factory | Garrison activated, responded to threat 3607 | -7/Factory | Build established: Scavenger-Skirmisher 3774 | -7/Factory | Discovered new exit (range 14) 3790 | -7/Factory | Identified exit to Factory 3798 | -7/Factory | Entered another Factory area 3798 | -6/Factory | Accompanied by 9 allies 3798 | -6/Factory | Evolved 2 slots: Propulsion x1, Weapon x1 4022 | -6/Factory | Discovered new exit (range 22) 4089 | -6/Factory | Identified exit to Lower Caves 4100 | -6/Factory | Entered Lower Caves 4100 | -6/Lower Caves | Accompanied by 9 allies 4406 | -6/Lower Caves | Encountered a Warlord checkpoint 4446 | -6/Lower Caves | Learned Factory stockpile data 4545 | -6/Lower Caves | Discovered new exit (range 14) 4566 | -6/Lower Caves | Identified exit to Lower Caves 4574 | -6/Lower Caves | Entered another Lower Caves area 4574 | -6/Lower Caves | Accompanied by 9 allies 4624 | -6/Lower Caves | Discovered new exit (range 5) 4628 | -6/Lower Caves | Identified exit to Factory 4729 | -6/Lower Caves | Identified exit to Zion 4975 | -6/Lower Caves | Entered Zion 5040 | -6/Zion | Received a visual enhancement algorithm 5048 | -6/Zion | Discovered new exit (range 17) 5069 | -6/Zion | Identified exit to Proximity Caves 5251 | -6/Zion | Learned Factory emergency access door positions 5379 | -6/Zion | Learned location of Extension (-5) 5385 | -6/Zion | Visited the Megawrench Repair Shop 5396 | -6/Zion | Megawrench repaired 9 parts 5519 | -6/Zion | Acquired unknown access codes intercepted by a Zionite 5672 | -6/Zion | Learned Factory stockpile data 6091 | -6/Zion | Entered Proximity Caves 6208 | -5/Proximity Caves | Learned Factory terminal intel 6488 | -5/Proximity Caves | Spotted B-75 Beast 6789 | -5/Proximity Caves | Entered Factory 6789 | -5/Factory | Evolved 2 slots: Propulsion x1, Utility x1 6792 | -5/Factory | Loaded intel: 22 terminal locations 7012 | -5/Factory | Discovered new exit (range 4) 7058 | -5/Factory | Discovered new exit (range 19) 7111 | -5/Factory | Discovered new exit (range 14) 7148 | -5/Factory | Entered Extension 7206 | -5/Extension | Rescued A7 7431 | -5/Extension | Rescued a captive Derelict 7448 | -5/Extension | Rescued a captive Derelict 7449 | -5/Extension | Rescued a captive Derelict 7715 | -5/Extension | Rescued a captive Derelict 7716 | -5/Extension | Rescued a captive Derelict 8048 | -5/Extension | First assault squad dispatched 8111 | -5/Extension | Destroyed 8 combat bots 8150 | -5/Extension | Discovered new exit (range 14) 8155 | -5/Extension | Crushed by falling debris 8157 | -5/Extension | Disrupted transfer network 8157 | -5/Extension | Discovered new exit (range 8) 8186 | -5/Extension | Lost 3 parts (1p2u) 8254 | -5/Extension | Entered Cetus 8254 | -5/Cetus | Accompanied by 4 allies (A7) 8259 | -5/Cetus | Acquired a Cetus Manufacturing Module code from A7 8267 | -5/Cetus | Spotted Cetus Guard 8268 | -5/Cetus | Spotted Cetus Guard 8271 | -5/Cetus | Spotted Cetus Guard 8273 | -5/Cetus | Spotted Cetus Guard 8283 | -5/Cetus | Destroyed Cetus Guard 8285 | -5/Cetus | Destroyed Cetus Guard 8298 | -5/Cetus | Extracted ID and sensor layout for unrecognized location from A7's data core 8306 | -5/Cetus | Destroyed Cetus Guard 8315 | -5/Cetus | Destroyed Cetus Guard 8436 | -5/Cetus | Started Cetus Manufacturing Module 8445 | -5/Cetus | Build established: Scavenger-Tank 8461 | -5/Cetus | Manufactured an Enhanced Grunt 8486 | -5/Cetus | Manufactured an Enhanced Grunt 8511 | -5/Cetus | Manufactured an Enhanced Grunt 8536 | -5/Cetus | Manufactured an Enhanced Grunt 8538 | -5/Cetus | Cetus Manufacturing Module disabled 8613 | -5/Cetus | Discovered new exit (range 22) 8665 | -5/Cetus | Spotted Cetus Guard 8666 | -5/Cetus | Spotted Cetus Guard 8669 | -5/Cetus | Spotted Cetus Guard 8669 | -5/Cetus | Destroyed Cetus Guard 8672 | -5/Cetus | Spotted Cetus Guard 8672 | -5/Cetus | Destroyed Cetus Guard 8681 | -5/Cetus | Discovered new exit (range 22) 8681 | -5/Cetus | Allies destroyed Cetus Guard 8684 | -5/Cetus | Allies destroyed Cetus Guard 8699 | -5/Cetus | Met Revision 17 8719 | -5/Cetus | Identified exit to Factory 8850 | -5/Cetus | Identified exit to Archives 8856 | -5/Cetus | Entered Archives 8856 | -5/Archives | Accompanied by 4 allies 8896 | -5/Archives | Discovered new exit (range 22) 8901 | -5/Archives | Unable to access archive contents 8913 | -5/Archives | Unable to access archive contents 8917 | -5/Archives | Discovered exit to Factory (range 17) 8924 | -5/Archives | Unable to access archive contents 8930 | -5/Archives | Discovered new exit (range 15) 8937 | -5/Archives | Unable to access archive contents 8954 | -5/Archives | Identified exit to Hub_04(d) 8963 | -5/Archives | Entered Hub_04(d) 8963 | -5/Hub_04(d) | Accompanied by 3 allies 9062 | -5/Hub_04(d) | Build established: Scavenger-Gunner 9109 | -5/Hub_04(d) | Discovered exit to Factory (range 22) 9186 | -5/Hub_04(d) | System corruption reached 10% 9263 | -5/Hub_04(d) | First assault squad dispatched 9431 | -5/Hub_04(d) | Network Hub disabled 9446 | -5/Hub_04(d) | Entered Factory 9446 | -4/Factory | Evolved 2 slots: Utility x2 9725 | -4/Factory | Build established: Scavenger-Assassin 9820 | -4/Factory | Spotted B-86 Titan 9946 | -4/Factory | First assault squad dispatched 10006 | -4/Factory | Discovered new exit (range 23) 10082 | -4/Factory | Identified exit to Research 10083 | -4/Factory | Entered Research 10083 | -3/Research | Evolved 2 slots: Utility x2 10276 | -3/Research | Found Hvy. Reactive Plating 10935 | -3/Research | Found Prototype Hackware 11083 | -3/Research | First assault squad dispatched 11266 | -3/Research | Lost 3 parts (1p1u1w) 11382 | -3/Research | Garrison activated, responded to threat 11430 | -3/Research | System corruption reached 10% 11443 | -3/Research | Destroyed 8 combat bots 11451 | -3/Research | Lost 10 parts (1p1n5u3w) 11538 | -3/Research | Cargo convoy interrupted 11557 | -3/Research | Released all parts (11) 11582 | -3/Research | Lost 10 parts (1p1n4u4w) 11589 | -3/Research | Spotted B-86 Titan 11608 | -3/Research | Core integrity fell below 50% 11608 | -3/Research | System corruption reached 30% 11708 | -3/Research | Crushed by falling debris 11708 | -3/Research | Core integrity fell below 20% 11831 | -3/Research | Build established: Mutant 12120 | -3/Research | Self-destructed Last Messages --------------- 11722_ System corrupted: IFF burst signal emitted. 11737_ System corrupted: Matter fused (-5). 11784_ System corrupted: Matter fused (-8). 11805_ JHXG 7LLOW:>8 Q8AVSP VXIMHU2I/BODW 11838_ System corrupted: Energy discharge (-27). 11853_ System corrupted: Component data lost. 11868_ System corrupted: Substantial component data lost. 11904_ System corrupted: Heat flow error (+223). 11919_ KFLHYACP0#RX D%RW>4MJ VP9GO6TQGKRLTV6 11957_ System corrupted: Component data lost. 11975_ WVRZT2